bitfinex/quotes_SOLUSD_20250508
["timestamp","ask_amount","ask_price","bid_price","bid_amount"]
[1746691554146,35.6651533,152.45,152.4,11.40497519]
[1746691554917,24.26017811,152.45,152.41,37.40497519]
[1746691555339,24.26017811,152.45,152.41,11.40497519]
[1746691555648,24.26017811,152.45,152.38,76.0]
[1746691555846,24.26017811,152.45,152.41,11.40497519]
[1746691556049,35.6651533,152.45,152.4,11.40497519]
[1746691556422,35.6651533,152.45,152.37,99.86]
[1746691556423,11.40497519,152.42,152.37,99.86]
[1746691556637,11.40497519,152.42,152.37,111.26497519]
[1746691557247,11.40497519,152.42,152.37,99.86]
[1746691557435,11.40497519,152.42,152.37,111.26497519]
[1746691557747,4.87942027,152.41,152.37,111.26497519]
[1746691558157,4.87942027,152.41,152.38,11.40497519]
[1746691558454,11.44092253,152.41,152.38,11.40497519]
[1746691559041,6.56150226,152.41,152.38,11.40497519]
[1746691559259,6.56150226,152.41,152.37,111.26497519]
[1746691559440,6.56150226,152.41,152.37,99.86]
[1746691559646,17.96647745,152.41,152.37,99.86]
[1746691559946,24.76267119,152.41,152.37,99.86]
[1746691560144,6.56150226,152.41,152.37,118.06116893]
[1746691560344,24.76267119,152.41,152.37,118.06116893]
[1746691560545,23.08038858,152.4,152.37,17.06]
[1746691561540,6.56211037,152.39,152.37,17.06]
[1746691561838,11.44133002,152.39,152.37,17.06]
[1746691562239,29.64249895,152.39,152.37,17.06]
[1746691562434,6.56211037,152.39,152.37,17.06]
[1746691563251,18.20116893,152.38,152.37,17.06]
[1746691563756,24.76370994,152.38,152.37,17.06]
[1746691564059,24.76370994,152.38,152.34,82.8]
[1746691564358,18.20116893,152.37,152.33,17.0]
[1746691564542,24.76370994,152.38,152.33,35.20116893]
[1746691564934,18.20116893,152.37,152.33,17.0]
[1746691565738,6.56317615,152.37,152.33,17.0]
[1746691565932,18.20116893,152.36,152.33,17.0]
[1746691566146,4.88140689,152.36,152.33,17.0]
[1746691567238,24.76434508,152.37,152.33,17.0]
[1746691568258,6.56317615,152.37,152.33,17.0]
[1746691568455,6.56317615,152.37,152.33,35.20116893]
[1746691568655,18.20116893,152.36,152.33,17.0]
[1746691570049,11.44673701,152.35,152.33,17.0]
[1746691571438,6.56345251,152.36,152.33,17.0]
[1746691571758,6.56345251,152.36,152.33,35.20116893]
[1746691571949,6.56297171,152.37,152.33,35.20116893]
[1746691572256,4.88279802,152.36,152.33,35.20116893]
[1746691572956,4.88279802,152.35,152.33,35.20116893]
[1746691573560,4.88279802,152.36,152.33,17.0]
[1746691573857,11.4463171,152.36,152.33,46.26312071]
[1746691574058,4.88279802,152.36,152.33,46.26312071]
[1746691574247,4.88279802,152.36,152.35,29.26312071]
[1746691575249,11.44620048,152.36,152.34,29.26312071]
[1746691575863,11.44620048,152.36,152.35,29.26312071]
[1746691579573,11.44620048,152.36,152.33,17.0]
[1746691580068,11.44620048,152.36,152.34,29.26312071]
[1746691580966,6.56254101,152.38,152.35,29.26312071]
[1746691582459,6.56340246,152.36,152.35,29.26312071]
[1746691582772,6.56340246,152.36,152.34,29.26312071]
[1746691582960,11.45855709,152.37,152.35,29.26312071]
[1746691583172,4.89547508,152.37,152.35,29.26312071]
[1746691583361,4.89547508,152.37,152.36,29.26312071]
[1746691583669,6.56270635,152.38,152.36,29.26312071]
[1746691584564,6.56211037,152.39,152.36,29.26312071]
[1746691584767,6.56081879,152.42,152.38,29.26312071]
[1746691585073,6.56081879,152.42,152.4,29.26312071]
[1746691585365,6.56081879,152.42,152.35,132.8]
[1746691585366,6.56081879,152.42,152.41,29.26312071]
[1746691585873,6.56081879,152.42,152.4,29.26312071]
[1746691586571,22.95997976,152.44,152.4,29.26312071]
[1746691587572,6.56081879,152.42,152.4,29.26312071]
[1746691588371,4.89694405,152.41,152.4,29.26312071]
[1746691588673,34.16006476,152.41,152.35,112.06312071]
[1746691588855,34.16006476,152.41,152.33,93.0]
[1746691588856,29.26312071,152.37,152.33,46.26312071]
[1746691589250,29.26312071,152.37,152.33,17.0]
[1746691589451,4.89694405,152.36,152.33,17.0]
[1746691589652,6.56383327,152.35,152.33,17.0]
[1746691590377,4.89694405,152.34,152.33,17.0]
[1746691590785,34.16006476,152.34,152.29,50.0]
[1746691590986,34.16006476,152.34,152.29,46.22312071]
[1746691591355,34.16006476,152.34,152.29,72.22312071]
[1746691591555,4.89694405,152.33,152.29,72.22312071]
[1746691591769,11.46190242,152.33,152.29,46.22312071]
[1746691591986,11.46190242,152.33,152.29,72.22312071]
[1746691592181,29.26312071,152.32,152.29,16.96]
[1746691592888,29.26312071,152.3,152.26,328.66]
[1746691593189,29.26312071,152.3,152.26,245.86]
[1746691593368,29.26312071,152.29,152.26,245.86]
[1746691593576,22.97669604,152.33,152.26,245.86]
[1746691593577,34.16006476,152.28,152.26,245.86]
[1746691593761,40.72717333,152.28,152.25,16.96]
[1746691594490,4.89694405,152.28,152.25,16.96]
[1746691594652,4.89694405,152.33,152.27,29.26312071]
[1746691594856,35.82824676,152.32,152.27,29.26312071]
[1746691595172,6.56512605,152.32,152.29,29.26312071]
[1746691595365,4.89694405,152.31,152.28,29.26312071]
[1746691595851,4.89694405,152.31,152.29,29.26312071]
[1746691596055,4.89694405,152.31,152.3,29.26312071]
[1746691596462,4.89694405,152.32,152.3,29.26312071]
[1746691596678,4.89694405,152.32,152.31,29.26312071]
[1746691597072,6.56437889,152.34,152.31,29.26312071]
[1746691597274,6.56437889,152.34,152.32,29.26312071]
[1746691597685,4.89776027,152.33,152.32,29.26312071]
[1746691597859,6.56512605,152.32,152.31,29.26312071]
[1746691598061,6.56512605,152.32,152.3,29.26312071]
[1746691598288,6.56512605,152.32,152.28,82.8]
[1746691598581,6.56512605,152.32,152.29,29.26312071]
[1746691598766,6.56512605,152.32,152.3,29.26312071]
[1746691599380,6.56512605,152.32,152.29,29.26312071]
[1746691599757,4.89835236,152.31,152.29,29.26312071]
[1746691600268,11.46397238,152.31,152.29,29.26312071]
[1746691601295,6.56469506,152.33,152.29,29.26312071]
[1746691601479,6.56469506,152.33,152.32,29.26312071]
[1746691601678,6.56417558,152.35,152.32,29.26312071]
[1746691601996,6.56297171,152.37,152.34,29.26312071]
[1746691602302,16.40509614,152.4,152.36,29.26312071]
[1746691602473,37.49662071,152.42,152.37,29.26312071]
[1746691602788,30.92032071,152.42,152.37,29.26312071]
[1746691603089,35.82436997,152.41,152.37,29.26312071]
[1746691603681,4.89925946,152.4,152.37,29.26312071]
[1746691603873,4.89925946,152.4,152.38,29.26312071]
[1746691604075,4.89925946,152.4,152.37,29.26312071]
[1746691604281,29.26312071,152.39,152.32,158.8]
[1746691604491,29.26312071,152.37,152.33,29.26312071]
[1746691605187,4.89925946,152.38,152.32,158.8]
[1746691605582,6.56297171,152.37,152.35,29.26312071]
[1746691605971,4.89925946,152.36,152.35,29.26312071]
[1746691607188,4.89925946,152.36,152.35,55.26312071]
[1746691607995,4.89925946,152.36,152.35,73.91276957]
[1746691608196,6.56267936,152.38,152.35,156.71276957]
[1746691608378,6.56267936,152.38,152.37,29.26312071]
[1746691608708,47.32333913,152.42,152.37,29.26312071]
[1746691608709,22.96437241,152.41,152.37,29.26312071]
[1746691609006,4.90071629,152.4,152.37,29.26312071]
[1746691609377,34.163837,152.4,152.35,108.8]
[1746691609580,6.56254101,152.38,152.35,138.06312071]
[1746691609900,4.90071629,152.37,152.35,108.8]
[1746691610098,4.90071629,152.37,152.35,44.20712313]
[1746691610899,4.90071629,152.36,152.35,44.20712313]
[1746691613605,6.56167979,152.4,152.35,44.20712313]
[1746691613800,6.56167979,152.4,152.35,26.0]
[1746691613998,6.56167979,152.4,152.37,18.20712313]
[1746691614811,4.89981974,152.39,152.37,18.20712313]
[1746691616296,11.46229294,152.39,152.37,18.20712313]
[1746691616700,4.89981974,152.38,152.37,18.20712313]
[1746691621098,6.56170587,152.4,152.37,18.20712313]
[1746691621290,6.56170587,152.4,152.36,50.0]
[1746691621291,6.56170587,152.4,152.38,18.20712313]
[1746691622014,4.89706313,152.39,152.38,18.20712313]
[1746691623696,4.89706313,152.39,152.37,18.64964886]
[1746691623900,4.89706313,152.39,152.38,18.20712313]
[1746691626912,6.56141236,152.41,152.38,18.20712313]
[1746691627116,4.89499251,152.39,152.38,18.20712313]
[1746691628111,6.56038837,152.43,152.38,18.20712313]
[1746691629417,6.56124926,152.41,152.38,18.20712313]
[1746691629799,6.56124926,152.41,152.39,18.20712313]
[1746691631717,6.5608954,152.42,152.38,170.17442556]
[1746691632094,6.5608954,152.42,152.39,11.37442556]
[1746691633105,6.56038837,152.43,152.39,11.37442556]
[1746691633305,6.56038837,152.43,152.4,11.37442556]
[1746691634224,4.89229766,152.42,152.4,11.37442556]
[1746691635207,4.89229766,152.41,152.4,11.37442556]
[1746691638405,4.89229766,152.41,152.39,11.37442556]
[1746691639520,6.56101025,152.42,152.39,11.37442556]
[1746691640713,6.56038837,152.43,152.39,11.37442556]
[1746691641119,1.30183112,152.45,152.4,11.37442556]
[1746691641424,7.86139718,152.45,152.43,11.37442556]
[1746691641640,7.86139718,152.45,152.41,26.0]
[1746691641864,24.26021646,152.45,152.41,26.0]
[1746691642023,4.89767698,152.44,152.41,26.0]
[1746691642732,4.89767698,152.44,152.42,11.37442556]
[1746691642907,11.45806535,152.43,152.4,82.8]
[1746691643319,11.45806535,152.43,152.4,94.17442556]
[1746691643713,11.45806535,152.43,152.4,82.8]
[1746691643913,4.89767698,152.42,152.4,82.8]
[1746691644409,4.89767698,152.42,152.38,28.27442556]
[1746691644815,6.56124926,152.41,152.38,28.27442556]
[1746691645024,11.45892624,152.41,152.38,28.27442556]
[1746691645711,4.89767698,152.4,152.39,11.37442556]
[1746691646230,4.89767698,152.4,152.38,16.9]
[1746691646415,4.89767698,152.4,152.38,28.27442556]
[1746691646928,4.89767698,152.39,152.38,28.27442556]
[1746691647641,17.93481393,152.43,152.38,16.9]
[1746691647846,11.37442556,152.42,152.38,16.9]
[1746691648208,17.93481393,152.43,152.38,28.27442556]
[1746691649034,6.56038837,152.43,152.39,11.37442556]
[1746691649621,6.56038837,152.43,152.38,28.27442556]
[1746691649822,17.93481393,152.43,152.38,28.27442556]
[1746691650218,6.56038837,152.43,152.38,28.27442556]
[1746691650422,6.56038837,152.43,152.4,11.37442556]
[1746691651111,6.55995801,152.44,152.41,11.37442556]
[1746691653416,6.55995801,152.44,152.4,76.0]
[1746691653622,6.55995801,152.44,152.41,11.37442556]
[1746691653926,7.86146027,152.45,152.43,11.37442556]
[1746691654125,7.86146027,152.45,152.43,37.37442556]
[1746691655513,1.30183112,152.45,152.44,16.86]
[1746691655913,1.30183112,152.45,152.44,28.23442556]
[1746691656739,1.30183112,152.45,152.44,16.86]
[1746691656919,7.86135883,152.45,152.44,28.23442556]
[1746691657248,1.30183112,152.45,152.44,16.86]
[1746691657417,5.0,152.52,152.48,26.0]
[1746691657616,5.0,152.52,152.49,19.08992556]
[1746691657840,5.0,152.52,152.51,44.64964886]
[1746691658138,6.55440768,152.57,152.52,18.64964886]
[1746691658339,6.5535094,152.59,152.52,18.64964886]
[1746691658536,6.5535094,152.59,152.56,11.37442556]
[1746691658725,6.5535094,152.59,152.54,18.64964886]
[1746691659432,6.5535094,152.59,152.56,11.37442556]
[1746691659635,6.5535094,152.59,152.54,18.64964886]
[1746691659840,6.5535094,152.59,152.56,18.15639669]
[1746691660139,6.5535094,152.59,152.54,18.64964886]
[1746691660328,6.5535094,152.59,152.55,68.15639669]
[1746691660525,24.70990609,152.59,152.54,18.64964886]
[1746691660843,24.70990609,152.59,152.55,18.15639669]
[1746691660844,6.5535094,152.59,152.55,18.15639669]
[1746691661038,24.70990609,152.59,152.55,18.15639669]
[1746691661222,6.5535094,152.59,152.54,50.0]
[1746691661423,18.15639669,152.59,152.55,18.15639669]
[1746691661831,22.93472562,152.61,152.55,18.15639669]
[1746691662023,18.15639669,152.59,152.55,18.15639669]
[1746691662219,18.15639669,152.59,152.54,68.15639669]
[1746691662416,18.15639669,152.56,152.52,50.0]
[1746691662926,18.15639669,152.54,152.51,99.66]
[1746691663126,18.15639669,152.52,152.5,82.8]
[1746691663339,6.55737704,152.5,152.48,50.0]
[1746691663531,6.55737704,152.5,152.47,16.86]
[1746691663837,18.15639669,152.48,152.46,76.0]
[1746691664039,6.55737704,152.5,152.46,94.15639669]
[1746691664240,6.55737704,152.5,152.47,18.15639669]
[1746691664441,18.15639669,152.52,152.48,68.15639669]
[1746691664749,6.55608732,152.53,152.48,150.95639669]
[1746691664941,24.71248401,152.53,152.48,150.95639669]
[1746691665128,18.15639669,152.52,152.48,132.8]
[1746691665321,16.39021831,152.53,152.48,82.8]
[1746691665526,6.55565753,152.54,152.49,18.15639669]
[1746691665823,6.55565753,152.54,152.51,18.15639669]
[1746691666033,6.55528978,152.55,152.5,50.0]
[1746691666347,6.55265054,152.61,152.55,50.0]
[1746691666651,6.55265054,152.61,152.57,18.15639669]
[1746691666831,6.55265054,152.61,152.57,50.0]
[1746691667649,22.93127169,152.63,152.56,18.15639669]
[1746691667846,18.15639669,152.58,152.53,50.0]
[1746691668023,22.93127169,152.63,152.53,50.0]
[1746691668024,18.15639669,152.56,152.53,76.0]
[1746691668226,22.93127169,152.63,152.55,50.0]
[1746691668426,18.15639669,152.58,152.53,76.0]
[1746691668645,18.15639669,152.54,152.47,53.33059413]
[1746691668853,18.15639669,152.52,152.47,71.48699082]
[1746691669021,18.15639669,152.52,152.48,26.0]
[1746691669357,18.15639669,152.53,152.48,44.15639669]
[1746691669554,6.55479811,152.56,152.49,18.15639669]
[1746691669733,22.94179339,152.56,152.5,18.15639669]
[1746691669935,18.15639669,152.55,152.5,18.15639669]
[1746691670250,18.15639669,152.53,152.49,50.0]
[1746691670452,22.94179339,152.56,152.49,50.0]
[1746691670640,22.94179339,152.56,152.5,18.15639669]
[1746691670836,6.55433031,152.58,152.53,18.15639669]
[1746691671050,6.55433031,152.58,152.55,18.15639669]
[1746691671258,18.15639669,152.56,152.52,76.0]
[1746691671435,18.15639669,152.55,152.52,76.0]
[1746691671736,6.55557308,152.55,152.52,76.0]
[1746691671938,4.89546076,152.54,152.53,26.0]
[1746691674642,24.7112283,152.56,152.53,26.0]
[1746691674842,1.6631,152.61,152.53,26.0]
[1746691674843,6.55307994,152.6,152.54,18.15639669]
[1746691675153,24.70947663,152.6,152.55,18.15639669]
[1746691675357,18.15639669,152.59,152.54,68.15639669]
[1746691675730,18.15639669,152.56,152.53,108.8]
[1746691675956,18.15639669,152.56,152.53,26.0]
[1746691676261,18.15639669,152.55,152.51,82.8]
[1746691676436,18.15639669,152.54,152.51,108.8]
[1746691676934,18.15639669,152.52,152.51,82.8]
[1746691677134,18.15639669,152.52,152.49,50.0]
[1746691677460,18.15639669,152.52,152.49,76.0]
[1746691677631,29.1174862,152.58,152.49,94.15639669]
[1746691677954,29.1174862,152.58,152.5,18.15639669]
[1746691678161,18.15639669,152.55,152.5,18.15639669]
[1746691678350,6.55393891,152.58,152.51,68.15639669]
[1746691678552,18.15639669,152.57,152.52,44.15639669]
[1746691678753,6.55393891,152.58,152.53,68.15639669]
[1746691679064,24.7103356,152.58,152.54,18.15639669]
[1746691679246,6.55307994,152.6,152.54,18.15639669]
[1746691679447,18.15639669,152.58,152.54,18.15639669]
[1746691679759,18.15639669,152.59,152.54,18.15639669]
[1746691679957,6.55277841,152.61,152.55,50.0]
[1746691680262,18.15639669,152.6,152.56,18.15639669]
[1746691680456,24.7091751,152.61,152.56,18.15639669]
[1746691680652,6.55277841,152.61,152.57,18.15639669]
[1746691680854,6.55277841,152.61,152.55,158.8]
[1746691681041,18.15639669,152.61,152.56,18.15639669]
[1746691681236,22.93127169,152.63,152.55,165.35515796]
[1746691683061,18.15639669,152.62,152.57,67.56]
[1746691683243,18.15639669,152.6,152.57,17.56]
[1746691683437,18.15639669,152.58,152.51,132.8]
[1746691683640,18.15639669,152.52,152.49,132.8]
[1746691683960,18.15639669,152.51,152.48,17.56]
[1746691684273,18.15639669,152.49,152.48,17.56]
[1746691684657,7.6871,152.54,152.48,17.56]
[1746691684863,18.15639669,152.49,152.48,17.56]
[1746691685167,24.71420375,152.49,152.44,249.07572376]
[1746691685339,18.15639669,152.48,152.44,249.07572376]
[1746691685537,6.55780706,152.49,152.44,263.91639669]
[1746691685755,22.94630563,152.53,152.46,26.85945327]
[1746691686046,6.55608732,152.53,152.49,26.85945327]
[1746691686967,33.41554059,152.53,152.49,26.85945327]
[1746691687180,26.85945327,152.52,152.47,26.0]
[1746691687354,26.85945327,152.5,152.47,26.0]
[1746691687668,26.85945327,152.51,152.47,26.0]
[1746691688042,6.55608732,152.53,152.48,26.85945327]
[1746691688238,33.41554059,152.53,152.48,26.85945327]
[1746691688773,6.55608732,152.53,152.48,26.85945327]
[1746691688994,26.85945327,152.54,152.5,26.85945327]
[1746691689270,6.55576847,152.54,152.5,26.85945327]
[1746691689439,6.55576847,152.54,152.48,132.8]
[1746691689638,6.55576847,152.54,152.48,82.8]
[1746691689639,26.85945327,152.51,152.48,82.8]
[1746691690249,22.9449123,152.54,152.48,82.8]
[1746691690442,26.85945327,152.51,152.48,82.8]
[1746691690870,22.9449123,152.54,152.48,26.0]
[1746691691080,26.85945327,152.55,152.49,26.85945327]
[1746691691451,26.85945327,152.55,152.48,26.0]
[1746691691650,22.94028969,152.57,152.49,26.85945327]
[1746691691849,26.85945327,152.55,152.5,26.85945327]
[1746691692054,26.85945327,152.55,152.49,26.85945327]
[1746691692260,22.94028969,152.57,152.49,26.85945327]
[1746691692540,26.85945327,152.54,152.49,26.85945327]
[1746691692739,26.85945327,152.54,152.48,26.0]
[1746691692969,26.85945327,152.54,152.49,26.85945327]
[1746691693167,6.55608732,152.53,152.49,26.85945327]
[1746691694257,6.55574961,152.54,152.5,26.85945327]
[1746691694979,33.41520288,152.54,152.49,26.85945327]
[1746691695281,6.55574961,152.54,152.49,26.85945327]
[1746691695481,6.55479811,152.56,152.5,26.85945327]
[1746691695763,6.55479811,152.56,152.52,26.85945327]
[1746691695952,6.55452336,152.57,152.53,26.85945327]
[1746691696155,7.8537,152.58,152.51,50.0]
[1746691696156,6.55409071,152.58,152.54,26.85945327]
[1746691696357,26.85945327,152.57,152.51,158.8]
[1746691696579,26.85945327,152.57,152.52,26.85945327]
[1746691696883,22.938938,152.58,152.51,82.8]
[1746691697067,26.85945327,152.55,152.51,82.8]
[1746691697467,22.938938,152.58,152.51,82.8]
[1746691698085,26.85945327,152.54,152.51,82.8]
[1746691698287,6.55565753,152.54,152.49,120.43945327]
[1746691698488,6.55565753,152.54,152.5,26.85945327]
[1746691698691,6.55565753,152.54,152.51,26.85945327]
[1746691699062,6.55565753,152.54,152.5,26.85945327]
[1746691699264,6.55565753,152.54,152.49,67.58]
[1746691699489,33.4151108,152.54,152.49,94.43945327]
[1746691699787,22.94480136,152.54,152.49,67.58]
[1746691700086,6.55565753,152.54,152.49,67.58]
[1746691700288,6.55479811,152.56,152.52,26.85945327]
[1746691700587,6.55479811,152.56,152.49,67.58]
[1746691700790,26.85945327,152.55,152.49,67.58]
[1746691700957,26.85945327,152.55,152.49,94.43945327]
[1746691702258,6.55565753,152.54,152.49,94.43945327]
[1746691702458,6.55565753,152.54,152.5,26.85945327]
[1746691702880,4.9056478,152.53,152.5,26.85945327]
[1746691703386,4.9056478,152.53,152.51,26.85945327]
[1746691704083,4.9056478,152.53,152.49,67.58]
[1746691704289,4.9056478,152.53,152.51,26.85945327]
[1746691704492,4.9056478,152.52,152.51,26.85945327]
[1746691706461,18.16582922,152.51,152.48,82.8]
[1746691706963,4.9056478,152.5,152.48,82.8]
[1746691707293,4.9056478,152.5,152.47,18.16582922]
[1746691707660,4.9056478,152.49,152.47,18.16582922]
[1746691707982,4.9056478,152.49,152.48,68.16582922]
[1746691709060,4.9056478,152.49,152.48,50.0]
[1746691709288,4.9056478,152.49,152.48,68.16582922]
[1746691709774,4.9056478,152.49,152.48,18.16582922]
[1746691710997,11.46355431,152.49,152.46,26.0]
[1746691711288,4.9056478,152.49,152.46,44.16582922]
[1746691711676,4.9056478,152.49,152.46,26.0]
[1746691711867,4.9056478,152.48,152.46,26.0]
[1746691712285,4.9056478,152.48,152.44,67.66]
[1746691712493,4.9056478,152.48,152.44,61.82582922]
[1746691712666,23.07147702,152.48,152.44,43.66]
[1746691712869,4.9056478,152.48,152.44,61.82582922]
[1746691713068,11.46425659,152.48,152.45,18.16582922]
[1746691713379,4.9056478,152.47,152.45,18.16582922]
[1746691714290,6.55860879,152.48,152.45,18.16582922]
[1746691714583,6.55651717,152.52,152.47,18.16582922]
[1746691714770,18.16582922,152.51,152.44,183.01987367]
[1746691714965,6.55651717,152.52,152.46,18.16582922]
[1746691715371,18.16582922,152.5,152.46,18.16582922]
[1746691715570,4.90533869,152.49,152.46,18.16582922]
[1746691715775,11.46329448,152.49,152.46,18.16582922]
[1746691715985,4.90533869,152.49,152.47,18.16582922]
[1746691716187,11.46314794,152.49,152.46,18.16582922]
[1746691716798,4.90533869,152.49,152.46,18.16582922]
[1746691717091,4.90533869,152.48,152.46,18.16582922]
[1746691717884,6.55707343,152.51,152.47,18.16582922]
[1746691718263,6.55707343,152.51,152.45,6.55926568]
[1746691718469,6.55707343,152.51,152.47,18.16582922]
[1746691718683,24.72290265,152.51,152.46,18.16582922]
[1746691718987,4.90487149,152.5,152.44,183.01981047]
[1746691719187,4.90487149,152.5,152.44,176.46]
[1746691719485,23.07070071,152.5,152.44,176.46]
[1746691719668,23.07070071,152.5,152.45,18.16582922]
[1746691719868,23.07070071,152.5,152.44,176.46]
[1746691719869,24.72363628,152.49,152.44,194.62582922]
[1746691720388,4.90487149,152.48,152.46,18.16582922]
[1746691720586,4.90487149,152.48,152.44,176.46]
[1746691720783,4.90487149,152.48,152.45,18.16582922]
[1746691721495,4.90487149,152.47,152.46,18.16582922]
[1746691727387,23.07223751,152.47,152.44,17.66]
[1746691727582,18.16582922,152.46,152.42,26.0]
[1746691727779,6.55952771,152.45,152.41,18.16582922]
[1746691727985,6.55952771,152.45,152.4,132.8]
[1746691728183,4.90640829,152.44,152.41,18.16582922]
[1746691728674,4.90640829,152.44,152.4,132.8]
[1746691728985,6.56038837,152.43,152.41,18.16582922]
[1746691729373,4.90640829,152.42,152.39,17.66]
[1746691729773,23.07223751,152.42,152.39,17.66]
[1746691729980,18.16582922,152.4,152.35,132.8]
[1746691730195,18.16582922,152.41,152.36,18.16582922]
[1746691730587,4.90640829,152.42,152.36,18.16582922]
[1746691730782,4.90640829,152.4,152.36,18.16582922]
[1746691730986,6.56211037,152.39,152.36,18.16582922]
[1746691731192,24.72793959,152.39,152.34,17.36]
[1746691731386,24.72793959,152.39,152.34,35.52582922]
[1746691732003,6.56211037,152.39,152.35,18.16582922]
[1746691733090,6.56167979,152.4,152.36,18.16582922]
[1746691733593,24.72750901,152.4,152.35,18.16582922]
[1746691734185,18.16582922,152.39,152.34,35.52582922]
[1746691734388,6.56167979,152.4,152.34,17.36]
[1746691734389,18.16582922,152.38,152.34,17.36]
[1746691734889,6.56167979,152.4,152.34,35.52582922]
[1746691735097,18.16582922,152.39,152.34,17.36]
[1746691735294,6.56254101,152.38,152.34,35.52582922]
[1746691736108,24.72837023,152.38,152.34,17.36]
[1746691736300,18.16582922,152.37,152.34,17.36]
[1746691736506,6.56254101,152.38,152.34,17.36]
[1746691736681,18.16582922,152.37,152.34,17.36]
[1746691737004,24.72837023,152.38,152.34,17.36]
[1746691737204,6.56340246,152.36,152.34,17.36]
[1746691737711,6.3732,152.4,152.35,18.16582922]
[1746691737894,24.72793959,152.39,152.34,35.52582922]
[1746691738294,24.72793959,152.39,152.34,17.36]
[1746691738590,18.16582922,152.37,152.34,17.36]
[1746691738897,24.72793959,152.39,152.34,35.52582922]
[1746691739206,6.56211037,152.39,152.35,18.16582922]
[1746691739425,24.72793959,152.39,152.34,17.36]
[1746691739712,6.56211037,152.39,152.34,17.36]
[1746691739916,18.16582922,152.36,152.34,17.36]
[1746691740207,18.16582922,152.36,152.29,68.64964886]
[1746691740208,18.16582922,152.36,152.29,168.82964886]
[1746691740406,18.16582922,152.36,152.3,26.0]
[1746691740612,18.16582922,152.37,152.32,18.16582922]
[1746691740991,6.56340246,152.36,152.32,18.16582922]
[1746691741316,24.72923168,152.36,152.32,18.16582922]
[1746691742001,24.72923168,152.36,152.31,18.16582922]
[1746691743809,16.40778213,152.37,152.31,18.16582922]
[1746691743995,18.16582922,152.36,152.31,18.16582922]
[1746691744505,34.57361135,152.37,152.32,18.16582922]
[1746691745001,6.56211037,152.39,152.32,18.16582922]
[1746691745207,18.16582922,152.37,152.32,18.16582922]
[1746691745410,6.56211037,152.39,152.32,18.16582922]
[1746691745608,18.16582922,152.36,152.32,18.16582922]
[1746691745983,22.9673863,152.39,152.32,18.16582922]
[1746691746213,18.16582922,152.36,152.32,18.16582922]
[1746691746402,18.16582922,152.37,152.32,18.16582922]
[1746691746601,22.9673863,152.39,152.32,18.16582922]
[1746691746937,18.16582922,152.37,152.33,18.16582922]
[1746691747209,18.16582922,152.36,152.32,18.16582922]
[1746691747387,41.13321552,152.39,152.35,18.16582922]
[1746691747589,22.9673863,152.39,152.35,18.16582922]
[1746691748406,41.13321552,152.39,152.35,18.16582922]
[1746691748607,18.16582922,152.38,152.34,18.16582922]
[1746691749206,18.16582922,152.37,152.33,18.16582922]
[1746691749405,18.16582922,152.36,152.32,26.0]
[1746691749616,18.16582922,152.35,152.29,179.4981127]
[1746691749798,18.16582922,152.35,152.31,18.16582922]
[1746691750418,6.56426414,152.34,152.29,179.4981127]
[1746691750611,6.56426414,152.34,152.3,18.16582922]
[1746691751817,6.56426414,152.34,152.29,126.18]
[1746691752202,24.73009336,152.34,152.29,126.18]
[1746691752403,24.73009336,152.34,152.29,144.34582922]
[1746691752603,18.16582922,152.33,152.29,17.38]
[1746691752803,18.16582922,152.32,152.29,17.38]
[1746691753219,18.16582922,152.31,152.26,18.16582922]
[1746691754126,29.0644245,152.34,152.26,18.16582922]
[1746691754324,18.16582922,152.31,152.26,18.16582922]
[1746691754517,6.56598818,152.3,152.24,100.18]
[1746691754722,6.56598818,152.3,152.26,18.16582922]
[1746691755025,6.56598818,152.3,152.24,126.18]
[1746691755210,6.56598818,152.3,152.26,18.16582922]
[1746691756409,6.56598818,152.3,152.24,135.95314438]
[1746691756609,6.56469506,152.33,152.28,18.16582922]
[1746691756820,18.16582922,152.32,152.27,18.16582922]
[1746691757028,18.16582922,152.31,152.26,18.16582922]
[1746691757324,6.56469506,152.33,152.27,18.16582922]
[1746691757325,18.16582922,152.32,152.27,18.16582922]
[1746691757525,6.56469506,152.33,152.25,56.56798732]
[1746691757722,24.73052428,152.33,152.28,18.16582922]
[1746691758225,6.56469506,152.33,152.28,18.16582922]
[1746691758422,6.56434386,152.34,152.32,18.16582922]
[1746691759122,6.56396823,152.35,152.32,18.16582922]
[1746691759438,6.56396823,152.35,152.33,18.16582922]
[1746691760017,41.1371452,152.37,152.32,18.16582922]
[1746691760423,18.16582922,152.36,152.32,18.16582922]
[1746691760606,18.16582922,152.36,152.3,17.58]